Workbook

Sheet Меню 11-18 лет!!!
A1: Меню
A2: Примерное двенадцатидневное меню для обучающихся в общеобразовательных учреждениях с 1-4 классы
A4: № Сб.рец | B4: Наименование продуктов | C4: Выход,г | D4: Белки,г | E4: Жиры,г | F4: Угл-ды,г | G4: Энер.ценность (ККАЛ) | H4: В1,мг | I4: С,мг | J4: А,мкг | K4: Е,мг | L4: Са,мг | M4: Р,мг | N4: Mg,мг | O4: Fe,мг
A5: 1-ая неделя
B6: 1 день
A7: №10 Сбор рец. На продукцию пит.для детей в дошк учреждениях, Дели 2016 | B7: Икра кабачковая | C7: 60 | D7: 0.54 | E7: 2.82 | F7: 3.55 | G7: 41.76 | H7: 0.014 | I7: 3.31 | K7: 1.43 | L7: 10.90 | M7: 13.67 | N7: 7.91 | O7: 0.37
A8: ТТК | B8: Котлеты "Пожарские" из говядины | C8: 80 | D8: 8.80 | E8: 7.70 | F8: 8.836 | G8: 168.00 | H8: 0.053 | I8: 1.20 | K8: 1.254 | L8: 14.252 | M8: 109.083 | N8: 14.642 | O8: 1.606
A9: № 171 сб шк 2017 | B9: Каша гречневая рассыпчатая маслом сливочным | C9: 150/5 | D9: 6.66 | E9: 9.024 | F9: 33.00 | G9: 170.00 | H9: 0.29 | J9: 41.00 | K9: 0.52 | L9: 27.35 | M9: 180.55 | N9: 104.55 | O9: 3.50
A10: № 377, Сбор рец. На прод-ию для обуч. Во всех образ. Учреж Дели 2017 | B10: Чай черный с сахаром, лимоном | C10: 200/15/7 | D10: 0.13 | E10: 0.02 | F10: 15.20 | G10: 62.00 | I10: 2.83 | K10: 0.010 | L10: 14.20 | M10: 4.40 | N10: 2.40 | O10: 0.360
A11: табл 6 стр 134,Хим. Состав и калорийность российских продуктов питания Дели + 2012 | B11: Хлеб белый | C11: 30 | D11: 2.28 | E11: 0.24 | F11: 14.76 | G11: 70.50 | H11: 0.03 | K11: 0.33 | L11: 6.00 | M11: 19.50 | N11: 4.20 | O11: 0.33
A12: табл 6 стр 144,Хим. Состав и калорийность российских продуктов питания Дели + 2012 | B12: Хлеб сельский | C12: 20 | D12: 1.00 | E12: 0.20 | F12: 9.00 | G12: 44.00 | H12: 0.01 | K12: 0.11 | L12: 2.76 | M12: 12.72 | N12: 3.00 | O12: 0.37
B13: Итого: | C13: 567 | D13: =SUM(D7:D12) -> 19.42 | E13: =SUM(E7:E12) -> 20.00 | F13: 84.35 | G13: 556.26 | H13: 0.41 | I13: 7.34 | J13: 41.00 | K13: 3.65 | L13: 75.46 | M13: 339.93 | N13: 136.71 | O13: 6.53
B14: 2 день
A15: № 52, Сбор рец. На прод-ию для обуч. Во всех образ. Учреж Дели 2017 | B15: Салат из отварной свеклы с маслом растительным | C15: 60 | D15: 0.85 | E15: 3.61 | F15: 4.96 | G15: 55.68 | H15: 0.01 | I15: 3.99 | K15: 1.62 | L15: 21.28 | M15: 24.38 | N15: 12.42 | O15: 0.79
A16: ттк | B16: Жаркое из куриных грудок | C16: 50/150 | D16: 12.000 | E16: 16.120 | F16: 29.800 | G16: 295.000 | H16: 0.222 | I16: 27.825 | J16: 28.500 | K16: 2.174 | L16: 35.535 | M16: 197.840 | N16: 47.778 | O16: 2.260
A17: № 382, Сбор рец. На прод-ию для обуч. Во всех образ. Учреж Дели 2015 | B17: Чай с молоком | C17: 150/50/15 | D17: 1.52 | E17: 1.35 | F17: 15.90 | G17: 81.00 | H17: 0.04 | I17: 1.33 | J17: 10.00 | L17: 126.60 | M17: 92.80 | N17: 15.40 | O17: 0.41
A18: табл 6 стр 134,Хим. Состав и калорийность российских продуктов питания Дели + 2012 | B18: Хлеб белый | C18: 30 | D18: 2.280 | E18: 0.240 | F18: 14.760 | G18: 70.500 | H18: 0.033 | K18: 0.330 | L18: 6.000 | M18: 19.500 | N18: 4.200 | O18: 0.330
A19: табл 6 стр 144,Хим. Состав и калорийность российских продуктов питания Дели + 2012 | B19: Хлеб сельский | C19: 20 | D19: 1.000 | E19: 0.200 | F19: 9.000 | G19: 44.000 | H19: 0.014 | K19: 0.108 | L19: 2.760 | M19: 12.720 | N19: 3.000 | O19: 0.372
B20: Итого: | C20: 525 | D20: =D15+D16+D17+D18+D19 -> 17.65 | E20: =E15+E16+E17+E18+E19 -> 21.52 | F20: 74.42 | G20: 546.18 | H20: 0.32 | I20: 33.15 | J20: 38.50 | K20: 4.23 | L20: 192.18 | M20: 347.24 | N20: 82.80 | O20: 4.16
B21: 3 день
A22: № 260, Сбор рец. На прод-ию для обуч. Во всех образ. Учреж Дели 2015 | B22: Гуляш из говядины | C22: 50/50 | D22: 9.750 | E22: 11.500 | F22: 7.985 | G22: 156.000 | H22: 0.061 | I22: 2.440 | K22: 2.598 | L22: 14.890 | M22: 159.066 | N22: 20.920 | O22: 2.340
A23: № 202, Сбор рец. На прод-ию для обуч. Во всех образ. Учреж Дели 2017 | B23: Макаронные изделия отварные | C23: 150 | D23: 5.660 | E23: 0.670 | F23: 31.920 | G23: 156.300 | H23: 0.057 | K23: 0.770 | L23: 11.190 | M23: 37.170 | N23: 8.620 | O23: 0.852
A24: №10 Сбор рец. На продукцию пит.для детей в дошк учреждениях, Дели 2016 | B24: Зеленый горошек (доп.гарнир) | C24: 40 | D24: 1.20 | E24: 2.08 | F24: 2.50 | G24: 33.44 | H24: 0.04 | I24: 4.40 | K24: 0.96 | L24: 8.59 | M24: 23.99 | N24: 8.32 | O24: 0.28
A25: № 377, Сбор рец. На прод-ию для обуч. Во всех образ. Учреж Дели 2015 | B25: Чай черный с сахаром с курагой | C25: 200/15/7 | D25: 0.427 | E25: 3.835 | F25: 15.020 | G25: 76.240 | I25: 0.030 | L25: 11.100 | M25: 2.800 | N25: 1.400 | O25: 0.280
A26: табл 6 стр 134,Хим. Состав и калорийность российских продуктов питания Дели + 2012 | B26: Хлеб белый | C26: 30 | D26: 2.280 | E26: 0.240 | F26: 14.760 | G26: 70.500 | H26: 0.033 | K26: 0.330 | L26: 6.000 | M26: 19.500 | N26: 4.200 | O26: 0.330
A27: табл 6 стр 144,Хим. Состав и калорийность российских продуктов питания Дели + 2012 | B27: Хлеб сельский | C27: 20 | D27: 1.000 | E27: 0.200 | F27: 9.000 | G27: 44.000 | H27: 0.014 | K27: 0.108 | L27: 2.760 | M27: 12.720 | N27: 3.000 | O27: 0.372
B28: Итого: | C28: 562 | D28: =SUM(D22:D27) -> 20.32 | E28: =SUM(E22:E27) -> 18.53 | F28: 81.19 | G28: 536.48 | H28: 0.21 | I28: 6.87 | J28: 0.00 | K28: 4.77 | L28: 54.53 | M28: 255.25 | N28: 46.46 | O28: 4.45
B29: 4 день
A30: № 47, Сбор рец. На прод-ию для обуч. Во всех образ. Учреж Дели 2017 | B30: Салат из квашеной капусты | C30: 60 | D30: 1.02 | E30: 3.00 | F30: 5.08 | G30: 51.42 | H30: 0.01 | I30: 11.89 | K30: 9.24 | L30: 31.35 | M30: 20.37 | N30: 4.80 | O30: 0.40
A31: ттк | B31: Биточки рыбные | C31: 80 | D31: 9.800 | E31: 5.400 | F31: 3.682 | G31: 104.000 | H31: 0.017 | I31: 5.000 | J31: 25.000 | K31: 0.946 | L31: 8.242 | M31: 21.297 | N31: 1.124 | O31: 0.303
A32: № 312, Сбор рец. На прод-ию для обуч. Во всех образ. Учреж Дели 2015 | B32: Пюре картофельное с маслом | C32: 150/5 | D32: 3.090 | E32: 8.282 | F32: 22.067 | G32: 179.000 | H32: 0.164 | I32: 5.000 | J32: 45.500 | K32: 0.231 | L32: 47.808 | M32: 98.835 | N32: 32.978 | O32: 1.241
A33: № 379, Сбор рец. На прод-ию для обуч. Во всех образ. Учреж Дели 2017 | B33: Кофейный напиток с молоком | C33: 200 | D33: 3.166 | E33: 2.680 | F33: 15.950 | G33: 100.600 | H33: 0.044 | I33: 1.300 | J33: 20.000 | L33: 125.780 | M33: 90.000 | N33: 14.000 | O33: 0.134
A34: табл 6 стр 134,Хим. Состав и калорийность российских продуктов питания Дели + 2012 | B34: Хлеб белый | C34: 30 | D34: 2.280 | E34: 0.240 | F34: 14.760 | G34: 70.500 | H34: 0.033 | K34: 0.330 | L34: 6.000 | M34: 19.500 | N34: 4.200 | O34: 0.330
A35: табл 6 стр 144,Хим. Состав и калорийность российских продуктов питания Дели + 2012 | B35: Хлеб сельский | C35: 20 | D35: 1.000 | E35: 0.200 | F35: 9.000 | G35: 44.000 | H35: 0.014 | K35: 0.108 | L35: 2.760 | M35: 12.720 | N35: 3.000 | O35: 0.372
B36: Итого: | C36: 545 | D36: =SUM(D30:D35) -> 20.36 | E36: =SUM(E30:E35) -> 19.80 | F36: 70.53 | G36: 549.52 | H36: 0.28 | I36: 23.19 | J36: 90.50 | K36: 10.86 | L36: 221.94 | M36: 262.72 | N36: 60.10 | O36: 2.78
B37: 5 день
A38: № 268, Сбор рец. На прод-ию для обуч. Во всех образ. Учреж Дели 2015 | B38: Плов с говядиной | C38: 50/150 | D38: 15.900 | E38: 18.900 | F38: 40.095 | G38: 422.000 | H38: 0.106 | I38: 3.510 | K38: 3.931 | L38: 22.131 | M38: 240.284 | N38: 51.154 | O38: 2.932
A39: № 377, Сбор рец. На прод-ию для обуч. Во всех образ. Учреж Дели 2015 | B39: Чай черный с сахаром, лимоном | C39: 200/15/7 | D39: 0.13 | E39: 0.02 | F39: 15.20 | G39: 62.00 | I39: 2.83 | K39: 0.010 | L39: 14.20 | M39: 4.40 | N39: 2.40 | O39: 0.360
A40: № 71, Сбор рец. На прод-ию для обуч. Во всех образ. Учреж Дели 2017 | B40: Овощи натуральные (помидоры) | C40: 30 | D40: 0.33 | E40: 0.06 | F40: 1.14 | G40: 6.6 | H40: 0.018 | I40: 5.25 | K40: 0.21 | L40: 4.2 | M40: 7.8 | N40: 6 | O40: 0.27
A41: табл 6 стр 134,Хим. Состав и калорийность российских продуктов питания Дели + 2012 | B41: Хлеб белый | C41: 30 | D41: 2.28 | E41: 0.24 | F41: 14.76 | G41: 70.50 | H41: 0.033 | K41: 0.330 | L41: 6.000 | M41: 19.500 | N41: 4.200 | O41: 0.330
A42: табл 6 стр 144,Хим. Состав и калорийность российских продуктов питания Дели + 2012 | B42: Хлеб сельский | C42: 20 | D42: 1.00 | E42: 0.20 | F42: 9.00 | G42: 44.00 | H42: 0.014 | K42: 0.108 | L42: 2.760 | M42: 12.720 | N42: 3.000 | O42: 0.372
B43: Итого: | C43: 502 | D43: =SUM(D38:D42) -> 19.64 | E43: =SUM(E38:E42) -> 19.42 | F43: 80.20 | G43: 605.10 | H43: 0.17 | I43: 11.59 | J43: 0.00 | K43: 4.59 | L43: 49.29 | M43: 284.70 | N43: 66.75 | O43: 4.26
B44: 6 день
A45: № 3, Сбор рец. На прод-ию для обуч. Во всех образ. Учреж Дели 2017 | B45: Бутерброд с сыром | C45: 50 | D45: 6.27 | E45: 7.86 | F45: 14.83 | G45: 155.00 | H45: 0.04 | I45: 0.11 | J45: 51.50 | K45: 0.45 | L45: 157.20 | M45: 111.00 | N45: 12.45 | O45: 0.45
A46: ттк | B46: Пельмени "Для умников и умниц" (п/ф) отварные с маслом сливочным | C46: 190/5 | D46: 11.940 | E46: 13.375 | F46: 27.340 | G46: 279.000 | H46: 0.168 | I46: 2.629 | J46: 34.043 | K46: 1.354 | L46: 47.058 | M46: 212.108 | N46: 29.119 | O46: 2.536
A47: № 382, Сбор рец. На прод-ию для обуч. Во всех образ. Учреж Дели 2015 | B47: Чай с молоком | C47: 150/50/15 | D47: 1.52 | E47: 1.35 | F47: 15.90 | G47: 81.00 | H47: 0.04 | I47: 1.33 | J47: 10.00 | L47: 126.60 | M47: 92.80 | N47: 15.40 | O47: 0.41
A48: табл 6 стр 144,Хим. Состав и калорийность российских продуктов питания Дели + 2012 | B48: Хлеб сельский | C48: 20 | D48: 1.00 | E48: 0.20 | F48: 9.00 | G48: 44.00 | H48: 0.01 | K48: 0.11 | L48: 2.76 | M48: 12.72 | N48: 3.00 | O48: 0.37
B49: Итого: | C49: 480 | D49: =SUM(D45:D48) -> 20.73 | E49: =SUM(E45:E48) -> 22.79 | F49: 67.07 | G49: 559.00 | H49: 0.27 | I49: 4.07 | J49: 95.54 | K49: 1.91 | L49: 333.62 | M49: 428.63 | N49: 59.97 | O49: 3.77
A50: 2-ая неделя
B51: 1 день
A52: ттк | B52: Котлеты "Аппетитные" мясо-куриные | C52: 80 | D52: 7.800 | E52: 9.980 | F52: 5.122 | G52: 115.000 | H52: 0.057 | I52: 1.604 | J52: 12.880 | K52: 1.261 | L52: 15.062 | M52: 117.121 | N52: 15.147 | O52: 1.594
A53: № 202, Сбор рец. На прод-ию для обуч. Во всех образ. Учреж Дели 2015 | B53: Макаронные изделия отварные с маслом сливочным | C53: 150/5 | D53: 5.140 | E53: 8.093 | F53: 28.540 | G53: 220.000 | H53: 0.087 | J53: 21.000 | K53: 0.816 | L53: 16.457 | M53: 47.009 | N53: 8.479 | O53: 0.869
A54: №10 Сбор рец. На продукцию пит.для детей в дошк учреждениях, Дели 2016 | B54: Кукуруза консервированная (доп.гарнир) | C54: 40 | D54: 1.150 | E54: 2.470 | F54: 3.216 | G54: 39.720 | H54: 0.040 | I54: 3.720 | K54: 1.130 | L54: 7.460 | M54: 23.110 | N54: 7.812 | O54: 0.260
A55: № 376, Сбор рец. На прод-ию для обуч. Во всех образ. Учреж Дели 2015 | B55: Чай черный с сахаром | C55: 200/15 | D55: 0.070 | E55: 0.020 | F55: 15.000 | G55: 60.000 | I55: 0.030 | L55: 11.100 | M55: 2.800 | N55: 1.400 | O55: 0.280
A56: табл 6 стр 134,Хим. Состав и калорийность российских продуктов питания Дели + 2012 | B56: Хлеб белый | C56: 30 | D56: 2.280 | E56: 0.240 | F56: 14.760 | G56: 70.500 | H56: 0.033 | K56: 0.330 | L56: 6.000 | M56: 19.500 | N56: 4.200 | O56: 0.330
A57: табл 6 стр 144,Хим. Состав и калорийность российских продуктов питания Дели + 2012 | B57: Хлеб сельский | C57: 20 | D57: 1.000 | E57: 0.200 | F57: 9.000 | G57: 44.000 | H57: 0.014 | K57: 0.108 | L57: 2.760 | M57: 12.720 | N57: 3.000 | O57: 0.372
B58: Итого: | C58: 540 | D58: =SUM(D52:D57) -> 17.44 | E58: =SUM(E52:E57) -> 21.00 | F58: 75.64 | G58: 549.22 | H58: 0.23 | I58: 5.35 | J58: 33.88 | K58: 3.65 | L58: 58.84 | M58: 222.26 | N58: 40.04 | O58: 3.71
B59: 2 день
A60: ттк | B60: Ежики мясные с рисом в соусе томатном | C60: 60/40 | D60: 9.587 | E60: 12.600 | F60: 9.451 | G60: 179.000 | H60: 0.049 | I60: 2.517 | K60: 2.096 | L60: 12.795 | M60: 107.490 | N60: 18.180 | O60: 1.531
A61: № 312, Сбор рец. На прод-ию для обуч. Во всех образ. Учреж Дели 2015 | B61: Пюре картофельное | C61: 150 | D61: 3.090 | E61: 4.657 | F61: 22.027 | G61: 146.000 | H61: 0.163 | I61: 25.943 | J61: 25.500 | K61: 0.181 | L61: 46.606 | M61: 97.336 | N61: 32.978 | O61: 1.231
A62: № 70, Сбор рец. На прод-ию для обуч. Во всех образ. Учреж Дели 2017 | B62: Овощи натуральные соленые (огурцы) /доп.гарнир | C62: 30 | D62: 0.240 | E62: 0.030 | F62: 0.510 | G62: 3.000 | H62: 0.060 | I62: 1.050 | K62: 0.030 | L62: 6.900 | M62: 7.200 | N62: 4.200 | O62: 0.180
A63: № 382, Сбор рец. На прод-ию для обуч. Во всех образ. Учреж Дели 2017 | B63: Какао с молоком | C63: 200 | D63: 4.078 | E63: 3.544 | F63: 17.578 | G63: 118.600 | H63: 0.056 | I63: 1.588 | J63: 24.400 | L63: 152.220 | M63: 124.560 | N63: 21.340 | O63: 0.478
A64: табл 6 стр 134,Хим. Состав и калорийность российских продуктов питания Дели + 2012 | B64: Хлеб белый | C64: 30 | D64: 2.280 | E64: 0.240 | F64: 14.760 | G64: 70.500 | H64: 0.033 | K64: 0.330 | L64: 6.000 | M64: 19.500 | N64: 4.200 | O64: 0.330
A65: табл 6 стр 144,Хим. Состав и калорийность российских продуктов питания Дели + 2012 | B65: Хлеб сельский | C65: 20 | D65: 1.000 | E65: 0.200 | F65: 9.000 | G65: 44.000 | H65: 0.014 | K65: 0.108 | L65: 2.760 | M65: 12.720 | N65: 3.000 | O65: 0.372
B66: Итого: | C66: 530 | D66: =SUM(D60:D65) -> 20.28 | E66: =SUM(E60:E65) -> 21.27 | F66: 73.33 | G66: 561.10 | H66: 0.38 | I66: 31.10 | J66: 49.90 | K66: 2.75 | L66: 227.28 | M66: 368.81 | N66: 83.90 | O66: 4.12
B67: 3 день
A68: № 47, Сбор рец. На прод-ию для обуч. Во всех образ. Учреж Дели 2017 | B68: Салат из квашеной капусты | C68: 60 | D68: 1.02 | E68: 3.00 | F68: 5.08 | G68: 51.42 | H68: 0.01 | I68: 11.89 | K68: 9.24 | L68: 31.35 | M68: 20.37 | N68: 4.80 | O68: 0.40
A69: ттк | B69: Гуляш из куриных грудок | C69: 50/50 | D69: 8.958 | E69: 8.320 | F69: 3.396 | G69: 171.000 | H69: 0.078 | I69: 3.970 | J69: 28.400 | K69: 3.197 | L69: 17.166 | M69: 122.746 | N69: 18.274 | O69: 1.137
A70: № 30, Сбор рец. На прод-ию для обуч. Во всех образ. Учреж Дели 2015 | B70: Каша гречневая рассыпчатая | C70: 150 | D70: 6.622 | E70: 9.024 | F70: 33.000 | G70: 170.000 | H70: 0.291 | J70: 21.000 | K70: 0.468 | L70: 20.632 | M70: 177.928 | N70: 104.220 | O70: 3.448
A71: № 377, Сбор рец. На прод-ию для обуч. Во всех образ. Учреж Дели 2017 | B71: Чай черный с сахаром, лимоном | C71: 200/15/7 | D71: 0.13 | E71: 0.02 | F71: 15.20 | G71: 62.00 | I71: 2.83 | K71: 0.010 | L71: 14.20 | M71: 4.40 | N71: 2.40 | O71: 0.360
A72: табл 6 стр 134,Хим. Состав и калорийность российских продуктов питания Дели + 2012 | B72: Хлеб белый | C72: 30 | D72: 2.280 | E72: 0.240 | F72: 14.760 | G72: 70.500 | H72: 0.033 | K72: 0.330 | L72: 6.000 | M72: 19.500 | N72: 4.200 | O72: 0.330
A73: табл 6 стр 144,Хим. Состав и калорийность российских продуктов питания Дели + 2012 | B73: Хлеб сельский | C73: 20 | D73: 1.000 | E73: 0.200 | F73: 9.000 | G73: 44.000 | H73: 0.014 | K73: 0.108 | L73: 2.760 | M73: 12.720 | N73: 3.000 | O73: 0.372
B74: Итого: | C74: 582 | D74: =SUM(D68:D73) -> 20.01 | E74: =SUM(E68:E73) -> 20.80 | F74: 80.43 | G74: 568.92 | H74: 0.43 | I74: 18.69 | J74: 49.40 | K74: 13.35 | L74: 92.11 | M74: 357.66 | N74: 136.89 | O74: 6.05
B75: 4 день
A76: №10 Сбор рец. На продукцию пит.для детей в дошк учреждениях, Дели 2016 | B76: Икра кабачковая | C76: 60 | D76: 0.54 | E76: 2.82 | F76: 3.55 | G76: 41.76 | H76: 0.014 | I76: 3.31 | K76: 1.43 | L76: 10.90 | M76: 13.67 | N76: 7.91 | O76: 0.37
A77: ТТК | B77: Грудка куриная (маринованное филе) в сливочном соусе | C77: 60/30 | D77: 11.650 | E77: 10.756 | F77: 1.632 | G77: 154.000 | H77: 0.068 | I77: 2.326 | J77: 68.677 | K77: 3.956 | L77: 25.185 | M77: 123.198 | N77: 15.716 | O77: 1.009
A78: № 304, Сбор рец. На прод-ию для обуч. Во всех образ. Учреж Дели 2015 | B78: Рис отварной | C78: 150 | D78: 3.834 | E78: 5.420 | F78: 31.600 | G78: 210.000 | H78: 0.044 | J78: 27.000 | K78: 0.284 | L78: 11.460 | M78: 84.150 | N78: 27.330 | O78: 0.597
A79: № 377, Сбор рец. На прод-ию для обуч. Во всех образ. Учреж Дели 2015 | B79: Чай черный с сахаром с курагой | C79: 200/15/7 | D79: 0.521 | E79: 0.005 | F79: 21.725 | G79: 88.000 | H79: 0.150 | J79: 0.090 | K79: 1.500 | L79: 100.450 | M79: 80.000 | N79: 40.000 | O79: 1.845
A80: табл 6 стр 134,Хим. Состав и калорийность российских продуктов питания Дели + 2012 | B80: Хлеб белый | C80: 30 | D80: 2.280 | E80: 0.240 | F80: 14.760 | G80: 70.500 | H80: 0.033 | K80: 0.330 | L80: 6.000 | M80: 19.500 | N80: 4.200 | O80: 0.330
A81: табл 6 стр 144,Хим. Состав и калорийность российских продуктов питания Дели + 2012 | B81: Хлеб сельский | C81: 20 | D81: 1.000 | E81: 0.200 | F81: 9.000 | G81: 44.000 | H81: 0.014 | K81: 0.108 | L81: 2.760 | M81: 12.720 | N81: 3.000 | O81: 0.372
B82: Итого: | C82: 572 | D82: =SUM(D76:D81) -> 19.83 | E82: =SUM(E76:E81) -> 19.44 | F82: 82.27 | G82: 608.26 | H82: 0.32 | I82: 5.64 | J82: 95.77 | K82: 7.61 | L82: 156.76 | M82: 333.24 | N82: 98.16 | O82: 4.52
B83: 5 день
A84: № 52, Сбор рец. На прод-ию для обуч. Во всех образ. Учреж Дели 2017 | B84: Салат из свеклы отварной с зеленым горошком | C84: 60 | D84: 0.99 | E84: 2.47 | F84: 4.38 | G84: 43.74 | H84: 0.03 | I84: 4.12 | K84: 1.13 | L84: 17.00 | M84: 24.97 | N84: 11.04 | O84: 0.78
A85: № 280, Сбор рец. На прод-ию для обуч. Во всех образ. Учреж Дели 2017 | B85: Фрикадельки из говядины | C85: 80 | D85: 11.09 | E85: 12.83 | F85: 10.28 | G85: 202.05 | H85: 0.03 | I85: 0.13 | K85: 3.67 | L85: 14.47 | M85: 95.15 | N85: 13.93 | O85: 7.46
A86: № 145, Сбор рец. На прод-ию для обуч. Во всех образ. Учреж Дели 2017 | B86: Картофель тушеный с луком | C86: 150 | D86: 3.14 | E86: 10.58 | F86: 21.11 | G86: 195.00 | H86: 0.15 | I86: 17.99 | J86: 12.00 | K86: 4.25 | L86: 33.20 | M86: 84.69 | N86: 28.67 | O86: 1.22
A87: № 376, Сбор рец. На прод-ию для обуч. Во всех образ. Учреж Дели 2015 | B87: Чай черный с сахаром | C87: 200/15 | D87: 0.070 | E87: 0.020 | F87: 15.000 | G87: 60.000 | I87: 0.030 | L87: 11.100 | M87: 2.800 | N87: 1.400 | O87: 0.280
A88: табл 6 стр 134,Хим. Состав и калорийность российских продуктов питания Дели + 2012 | B88: Хлеб белый | C88: 30 | D88: 2.28 | E88: 0.24 | F88: 14.76 | G88: 70.50 | H88: 0.033 | K88: 0.330 | L88: 6.000 | M88: 19.500 | N88: 4.200 | O88: 0.330
A89: табл 6 стр 144,Хим. Состав и калорийность российских продуктов питания Дели + 2012 | B89: Хлеб сельский | C89: 20 | D89: 1.00 | E89: 0.20 | F89: 9.00 | G89: 44.00 | H89: 0.014 | K89: 0.108 | L89: 2.760 | M89: 12.720 | N89: 3.000 | O89: 0.372
B90: Итого: | C90: 555 | D90: =SUM(D84:D89) -> 18.56 | E90: =SUM(E84:E89) -> 26.34 | F90: 74.52 | G90: 615.29 | H90: 0.25 | I90: 22.26 | J90: 12.00 | K90: 9.48 | L90: 84.53 | M90: 239.83 | N90: 62.24 | O90: 10.44
B91: 6 день
A92: № 1 Сбор рец. На прод-ию для обуч. Во всех образ. Учреж Дели 2017 | B92: Бутерброд с маслом сливочным | C92: 40 | D92: 2.360 | E92: 7.490 | F92: 14.890 | G92: 136.000 | H92: 0.034 | J92: 40.000 | K92: 0.440 | L92: 8.400 | M92: 22.500 | N92: 4.200 | O92: 0.350
A93: № 243, Сбор рец. На прод-ию для обуч. Во всех образ. Учреж Дели 2015 | B93: Сосиски отварные | C93: 100 | D93: 7.400 | E93: 9.450 | F93: 0.800 | G93: 108.000 | H93: 0.030 | K93: 0.500 | L93: 25.000 | M93: 139.001 | N93: 15.000 | O93: 1.800
A94: № 202, Сбор рец. На прод-ию для обуч. Во всех образ. Учреж Дели 2015 | B94: Макаронные изделия отварные с маслом сливочным | C94: 150/5 | D94: 5.140 | E94: 8.068 | F94: 28.540 | G94: 220.000 | H94: 0.087 | J94: 21.000 | K94: 0.816 | L94: 16.457 | M94: 47.009 | N94: 8.479 | O94: 0.869
A95: № 379, Сбор рец. На прод-ию для обуч. Во всех образ. Учреж Дели 2017 | B95: Кофейный напиток с молоком | C95: 200 | D95: 3.166 | E95: 2.680 | F95: 15.950 | G95: 100.600 | H95: 0.044 | I95: 1.300 | J95: 20.000 | L95: 125.780 | M95: 90.000 | N95: 14.000 | O95: 0.134
A96: табл 6 стр 144,Хим. Состав и калорийность российских продуктов питания Дели + 2012 | B96: Хлеб сельский | C96: 20 | D96: 1.000 | E96: 0.200 | F96: 9.000 | G96: 44.000 | H96: 0.014 | K96: 0.108 | L96: 2.760 | M96: 12.720 | N96: 3.000 | O96: 0.372
B97: Итого: | C97: 515 | D97: =SUM(D92:D96) -> 19.07 | E97: =SUM(E92:E96) -> 27.89 | F97: 69.18 | G97: 608.60 | H97: 0.21 | I97: 1.30 | J97: 81.00 | K97: 1.86 | L97: 178.40 | M97: 311.23 | N97: 44.68 | O97: 3.53
A98: ИТОГО за 12 дней: | C98: =C13+C20+C28+C36+C43+C49+C58+C66+C74+C82+C90+C97 -> 6475 | D98: 233.30 | E98: 258.80 | F98: 913.11 | G98: 6863.93 | H98: 3.47 | I98: 170.54 | J98: 587.49 | K98: 68.69 | L98: 1724.92 | M98: 3751.49 | N98: 918.69 | O98: 58.32
B99: Итого в среднем на 1 учащегося в день: | C99: =C98/12 -> 540 | D99: =D98/12 -> 19.44 | E99: =E98/12 -> 21.57 | F99: 76.09 | G99: 571.99 | H99: 0.29 | I99: 14.21 | J99: 48.96 | K99: 5.72 | L99: 143.74 | M99: 312.62 | N99: 76.56 | O99: 4.86
A103: *Сборник рецептур на продукцию для обучающихся во всех образовательных учреждениях, Москва Дели Плюс 2017, Могильный М.П., Тутельян В.А.
A104: *Сборник рецептур на продукцию для питания детей в дошкольных образовательных организациях, Москва Дели Плюс 2016, Могильный М.П., Тутельян В.А.
A105: *Сборник рецептур на продукцию для обучающихся во всех образовательных учреждениях, Москва Дели Плюс 2015, Могильный М.П., Тутельян В.А.
A106: *Химический состав и калорийность Российских продуктов питания,Москва Дели Плюс,2012 ,В.А.Тутельян
A107: * Витамин А в блюдах рассчитан в мкг
